[Event "Titled Tuesday Blitz January 03 Early 2023"]
[White "Schut, Han"]
[Black "Osiecki, Stanislaw"]
[WhiteFideId "1005561"]
[BlackFideId "1102990"]
[WhiteElo "2101"]
[BlackElo "2055"]
[Result "0-1"]
[Round "09"]
[TimeControl "180+2"]
[Date "2023.01.03"]
[WhiteClock "0:00:26"]
[BlackClock "0:00:13"]

1. e4 {[%clk 0:03:00]}  e6 {[%clk 0:03:00]} 2. d4 {[%clk 0:03:00]}  d5 {[%clk 0:02:59]} 3. e5 {[%clk 0:03:01]}  c5 {[%clk 0:02:59]} 4. c3 {[%clk 0:03:01]}  Nc6 {[%clk 0:02:58]} 5. Nf3 {[%clk 0:03:01]}  Qb6 {[%clk 0:02:58]} 6. Bd3 {[%clk 0:03:01]}  cxd4 {[%clk 0:02:57]} 7. O-O {[%clk 0:03:02]}  dxc3 {[%clk 0:02:56]} 8. Nxc3 {[%clk 0:03:03]}  a6 {[%clk 0:02:56]} 9. Re1 {[%clk 0:02:58]}  Nge7 {[%clk 0:02:53]} 10. h4 {[%clk 0:02:56]}  h6 {[%clk 0:02:51]} 11. h5 {[%clk 0:02:56]}  Bd7 {[%clk 0:02:48]} 12. Na4 {[%clk 0:02:40]}  Qc7 {[%clk 0:02:44]} 13. Bd2 {[%clk 0:02:14]}  Na7 {[%clk 0:02:44]} 14. Rc1 {[%clk 0:02:07]}  Qb8 {[%clk 0:02:35]} 15. Nb6 {[%clk 0:02:03]}  Bb5 {[%clk 0:02:28]} 16. a4 {[%clk 0:01:54]}  Bxd3 {[%clk 0:02:26]} 17. Nxa8 {[%clk 0:01:55]}  Qxa8 {[%clk 0:02:25]} 18. Bb4 {[%clk 0:01:48]}  Be4 {[%clk 0:02:18]} 19. Nd4 {[%clk 0:01:39]}  Nac6 {[%clk 0:02:14]} 20. Bd6 {[%clk 0:01:33]}  Nxd4 {[%clk 0:02:11]} 21. Qxd4 {[%clk 0:01:33]}  Nf5 {[%clk 0:02:06]} 22. Qb6 {[%clk 0:01:26]}  Bxd6 {[%clk 0:02:01]} 23. exd6 {[%clk 0:01:26]}  O-O {[%clk 0:01:53]} 24. f3 {[%clk 0:01:15]}  Bd3 {[%clk 0:01:48]} 25. g4 {[%clk 0:01:10]}  Nh4 {[%clk 0:01:45]} 26. Qf2 {[%clk 0:01:10]}  Qd8 {[%clk 0:01:36]} 27. d7 {[%clk 0:01:06]}  Qf6 {[%clk 0:01:18]} 28. Rc8 {[%clk 0:01:04]}  Qe7 {[%clk 0:01:10]} 29. Rec1 {[%clk 0:00:46]}  Qxd7 {[%clk 0:00:51]} 30. Rxf8+ {[%clk 0:00:43]}  Kxf8 {[%clk 0:00:50]} 31. Qxh4 {[%clk 0:00:44]}  f6 {[%clk 0:00:48]} 32. Qg3 {[%clk 0:00:41]}  Qxa4 {[%clk 0:00:43]} 33. Rc8+ {[%clk 0:00:36]}  Ke7 {[%clk 0:00:39]} 34. Rc7+ {[%clk 0:00:27]}  Ke8 {[%clk 0:00:36]} 35. Rc8+ {[%clk 0:00:27]}  Ke7 {[%clk 0:00:33]} 36. Qc7+ {[%clk 0:00:24]}  Qd7 {[%clk 0:00:31]} 37. Qxd7+ {[%clk 0:00:22]}  Kxd7 {[%clk 0:00:31]} 38. Rg8 {[%clk 0:00:23]}  b5 {[%clk 0:00:20]} 39. Rxg7+ {[%clk 0:00:23]}  Kd6 {[%clk 0:00:20]} 40. Rg6 {[%clk 0:00:23]}  Bxg6 {[%clk 0:00:18]} 41. hxg6 {[%clk 0:00:24]}  Ke7 {[%clk 0:00:18]} 42. f4 {[%clk 0:00:24]}  Kf8 {[%clk 0:00:17]} 43. f5 {[%clk 0:00:24]}  e5 {[%clk 0:00:16]} 44. Kf2 {[%clk 0:00:23]}  a5 {[%clk 0:00:14]} 45. Ke3 {[%clk 0:00:24]}  a4 {[%clk 0:00:13]} 46. Kd3 {[%clk 0:00:24]}  b4 {[%clk 0:00:13]} 47. Kc2 {[%clk 0:00:24]}  e4 {[%clk 0:00:12]} 48. Kd2 {[%clk 0:00:23]}  a3 {[%clk 0:00:12]} 49. bxa3 {[%clk 0:00:23]}  bxa3 {[%clk 0:00:12]} 50. Kc3 {[%clk 0:00:24]}  e3 {[%clk 0:00:12]} 51. Kd3 {[%clk 0:00:25]}  a2 {[%clk 0:00:13]} 52. Kxe3 {[%clk 0:00:26]}  a1=Q {[%clk 0:00:13]} 0-1


[Site "https://www.chess.com"]

[Event "Titled Tuesday Blitz January 03 Early 2023"]
[White "Gholami Orimi, Mahdi"]
[Black "monkins"]
[WhiteFideId "12558486"]
[WhiteElo "2420"]
[BlackElo "2242"]
[Result "1-0"]
[Round "09"]
[TimeControl "180+2"]
[Date "2023.01.03"]
[WhiteClock "0:00:55"]
[BlackClock "0:01:04"]

1. d4 {[%clk 0:03:00]}  Nf6 {[%clk 0:02:47]} 2. c4 {[%clk 0:03:01]}  c5 {[%clk 0:02:46]} 3. d5 {[%clk 0:02:59]}  b5 {[%clk 0:02:45]} 4. cxb5 {[%clk 0:02:59]}  a6 {[%clk 0:02:46]} 5. f3 {[%clk 0:02:46]}  e6 {[%clk 0:02:38]} 6. e4 {[%clk 0:01:50]}  Nxe4 {[%clk 0:02:37]} 7. fxe4 {[%clk 0:01:47]}  Qh4+ {[%clk 0:02:38]} 8. Kd2 {[%clk 0:01:47]}  Qxe4 {[%clk 0:02:38]} 9. Nc3 {[%clk 0:01:47]}  Qg6 {[%clk 0:02:29]} 10. Nf3 {[%clk 0:01:45]}  Bd6 {[%clk 0:02:23]} 11. Qc2 {[%clk 0:01:40]}  Qh5 {[%clk 0:02:08]} 12. Bc4 {[%clk 0:01:36]}  O-O {[%clk 0:02:03]} 13. dxe6 {[%clk 0:01:25]}  fxe6 {[%clk 0:01:59]} 14. Qe4 {[%clk 0:01:25]}  Bf4+ {[%clk 0:01:54]} 15. Kc2 {[%clk 0:01:22]}  d5 {[%clk 0:01:52]} 16. Nxd5 {[%clk 0:01:23]}  exd5 {[%clk 0:01:52]} 17. Qxd5+ {[%clk 0:01:22]}  Qxd5 {[%clk 0:01:49]} 18. Bxd5+ {[%clk 0:01:23]}  Kh8 {[%clk 0:01:49]} 19. Bxf4 {[%clk 0:01:23]}  Bf5+ {[%clk 0:01:47]} 20. Kb3 {[%clk 0:01:18]}  Ra7 {[%clk 0:01:46]} 21. b6 {[%clk 0:01:17]}  Rd7 {[%clk 0:01:40]} 22. Rad1 {[%clk 0:01:11]}  Rxd5 {[%clk 0:01:40]} 23. Rxd5 {[%clk 0:01:10]}  Be6 {[%clk 0:01:41]} 24. Rd1 {[%clk 0:01:05]}  Rxf4 {[%clk 0:01:38]} 25. Kc3 {[%clk 0:01:03]}  Bxd5 {[%clk 0:01:36]} 26. Rxd5 {[%clk 0:01:04]}  Rf8 {[%clk 0:01:24]} 27. Ne5 {[%clk 0:01:04]}  g6 {[%clk 0:01:12]} 28. Rxc5 {[%clk 0:01:03]}  Kg7 {[%clk 0:01:09]} 29. b7 {[%clk 0:00:58]}  Kf6 {[%clk 0:01:05]} 30. Rc8 {[%clk 0:00:56]}  Ke7 {[%clk 0:01:04]} 31. Rxb8 {[%clk 0:00:55]} 1-0


[Site "https://www.chess.com"]

[Event "Titled Tuesday Blitz January 03 Early 2023"]
[White "Ciuffoletti, Paolo"]
[Black "Gavilan Diaz, Mario"]
[WhiteFideId "807630"]
[BlackFideId "2260905"]
[WhiteElo "2106"]
[BlackElo "2271"]
[Result "1-0"]
[Round "09"]
[TimeControl "180+2"]
[Date "2023.01.03"]
[WhiteClock "0:00:02"]
[BlackClock "0:00:01"]

1. e4 {[%clk 0:02:59]}  e6 {[%clk 0:02:58]} 2. d4 {[%clk 0:02:58]}  d5 {[%clk 0:02:58]} 3. e5 {[%clk 0:02:57]}  c5 {[%clk 0:02:52]} 4. c3 {[%clk 0:02:56]}  Nc6 {[%clk 0:02:52]} 5. Nf3 {[%clk 0:02:55]}  Qb6 {[%clk 0:02:52]} 6. a3 {[%clk 0:02:55]}  Nh6 {[%clk 0:02:52]} 7. b4 {[%clk 0:02:53]}  cxd4 {[%clk 0:02:52]} 8. cxd4 {[%clk 0:02:53]}  Nf5 {[%clk 0:02:52]} 9. Be3 {[%clk 0:02:52]}  f6 {[%clk 0:02:53]} 10. exf6 {[%clk 0:02:49]}  gxf6 {[%clk 0:02:53]} 11. Bd3 {[%clk 0:02:49]}  Nxe3 {[%clk 0:02:53]} 12. fxe3 {[%clk 0:02:50]}  Bh6 {[%clk 0:02:54]} 13. Qe2 {[%clk 0:02:49]}  O-O {[%clk 0:02:50]} 14. Nc3 {[%clk 0:02:40]}  Bd7 {[%clk 0:02:42]} 15. O-O {[%clk 0:02:37]}  Ne7 {[%clk 0:02:29]} 16. Nd1 {[%clk 0:02:19]}  Rac8 {[%clk 0:02:21]} 17. Nf2 {[%clk 0:02:15]}  e5 {[%clk 0:01:45]} 18. dxe5 {[%clk 0:01:45]}  Bxe3 {[%clk 0:01:44]} 19. exf6 {[%clk 0:01:33]}  Rxf6 {[%clk 0:01:37]} 20. Kh1 {[%clk 0:01:31]}  Rcf8 {[%clk 0:01:28]} 21. Rae1 {[%clk 0:01:16]}  d4 {[%clk 0:01:16]} 22. Ne4 {[%clk 0:01:07]}  Rh6 {[%clk 0:01:16]} 23. Bc4+ {[%clk 0:00:38]}  Kh8 {[%clk 0:01:14]} 24. Ne5 {[%clk 0:00:38]}  Bf5 {[%clk 0:00:58]} 25. Ng5 {[%clk 0:00:32]}  Bxg5 {[%clk 0:00:52]} 26. Nf7+ {[%clk 0:00:32]}  Rxf7 {[%clk 0:00:51]} 27. Bxf7 {[%clk 0:00:32]}  Be3 {[%clk 0:00:39]} 28. Qf3 {[%clk 0:00:22]}  Qd6 {[%clk 0:00:34]} 29. h3 {[%clk 0:00:19]}  Bd3 {[%clk 0:00:23]} 30. Rxe3 {[%clk 0:00:13]}  dxe3 {[%clk 0:00:17]} 31. Re1 {[%clk 0:00:12]}  Rf6 {[%clk 0:00:14]} 32. Qxe3 {[%clk 0:00:12]}  Rxf7 {[%clk 0:00:13]} 33. Rd1 {[%clk 0:00:12]}  Rf1+ {[%clk 0:00:11]} 34. Rxf1 {[%clk 0:00:10]}  Bxf1 {[%clk 0:00:12]} 35. Qc3+ {[%clk 0:00:10]}  Kg8 {[%clk 0:00:12]} 36. Qf3 {[%clk 0:00:08]}  Bc4 {[%clk 0:00:08]} 37. Qg4+ {[%clk 0:00:08]}  Kf7 {[%clk 0:00:08]} 38. Qxc4+ {[%clk 0:00:08]}  Qe6 {[%clk 0:00:07]} 39. Qf4+ {[%clk 0:00:08]}  Qf6 {[%clk 0:00:07]} 40. Qc4+ {[%clk 0:00:08]}  Kg7 {[%clk 0:00:07]} 41. Qc7 {[%clk 0:00:08]}  Qf1+ {[%clk 0:00:04]} 42. Kh2 {[%clk 0:00:08]}  Qf6 {[%clk 0:00:03]} 43. Qxb7 {[%clk 0:00:07]}  Qe5+ {[%clk 0:00:03]} 44. Kh1 {[%clk 0:00:06]}  Qe1+ {[%clk 0:00:03]} 45. Kh2 {[%clk 0:00:07]}  Qe5+ {[%clk 0:00:04]} 46. Kh1 {[%clk 0:00:07]}  Kg6 {[%clk 0:00:04]} 47. Qxa7 {[%clk 0:00:06]}  Nf5 {[%clk 0:00:04]} 48. Qb6+ {[%clk 0:00:06]}  Kg5 {[%clk 0:00:02]} 49. Qd8+ {[%clk 0:00:05]}  Kf4 {[%clk 0:00:02]} 50. Qa5 {[%clk 0:00:03]}  Ng3+ {[%clk 0:00:01]} 51. Kh2 {[%clk 0:00:02]} 1-0


[Site "https://www.chess.com"]

[Event "Titled Tuesday Blitz January 03 Early 2023"]
[White "Hartikainen, Jarmo"]
[Black "Legenia, Artem"]
[WhiteFideId "503134"]
[BlackFideId "14136945"]
[WhiteElo "2108"]
[BlackElo "2092"]
[Result "0-1"]
[Round "09"]
[TimeControl "180+2"]
[Date "2023.01.03"]
[WhiteClock "0:00:05"]
[BlackClock "0:00:14"]

1. e4 {[%clk 0:02:59]}  c5 {[%clk 0:02:57]} 2. c3 {[%clk 0:02:58]}  e6 {[%clk 0:02:56]} 3. d4 {[%clk 0:02:57]}  cxd4 {[%clk 0:02:55]} 4. cxd4 {[%clk 0:02:57]}  Nf6 {[%clk 0:02:55]} 5. Nc3 {[%clk 0:02:56]}  d5 {[%clk 0:02:53]} 6. e5 {[%clk 0:02:54]}  Nfd7 {[%clk 0:02:54]} 7. Bd3 {[%clk 0:02:50]}  Nc6 {[%clk 0:02:54]} 8. Nf3 {[%clk 0:02:49]}  Qb6 {[%clk 0:02:52]} 9. O-O {[%clk 0:02:17]}  Nxd4 {[%clk 0:02:50]} 10. Nxd4 {[%clk 0:02:11]}  Qxd4 {[%clk 0:02:50]} 11. Nb5 {[%clk 0:01:56]}  Qxe5 {[%clk 0:02:39]} 12. Re1 {[%clk 0:01:50]}  Qb8 {[%clk 0:02:27]} 13. Qc2 {[%clk 0:01:41]}  Bd6 {[%clk 0:02:24]} 14. Nxd6+ {[%clk 0:01:34]}  Qxd6 {[%clk 0:02:24]} 15. Be3 {[%clk 0:01:33]}  d4 {[%clk 0:02:16]} 16. Bd2 {[%clk 0:01:24]}  h6 {[%clk 0:01:59]} 17. a3 {[%clk 0:01:23]}  a5 {[%clk 0:01:58]} 18. b4 {[%clk 0:01:16]}  a4 {[%clk 0:01:55]} 19. b5 {[%clk 0:01:14]}  Qc5 {[%clk 0:01:50]} 20. Qb2 {[%clk 0:01:08]}  Qd5 {[%clk 0:01:47]} 21. Bb4 {[%clk 0:00:58]}  Nc5 {[%clk 0:01:45]} 22. Bxc5 {[%clk 0:00:23]}  Qxc5 {[%clk 0:01:44]} 23. Rac1 {[%clk 0:00:23]}  Qd6 {[%clk 0:01:39]} 24. Re4 {[%clk 0:00:21]}  e5 {[%clk 0:01:27]} 25. Rce1 {[%clk 0:00:20]}  f6 {[%clk 0:01:26]} 26. Rxd4 {[%clk 0:00:20]}  Qc7 {[%clk 0:01:23]} 27. Rc4 {[%clk 0:00:19]}  Qd6 {[%clk 0:01:23]} 28. Rd1 {[%clk 0:00:19]}  Qe7 {[%clk 0:01:21]} 29. Bg6+ {[%clk 0:00:19]}  Kf8 {[%clk 0:01:20]} 30. b6 {[%clk 0:00:19]}  Be6 {[%clk 0:01:18]} 31. Rc7 {[%clk 0:00:19]}  Rd8 {[%clk 0:01:13]} 32. Rdc1 {[%clk 0:00:16]}  Qd6 {[%clk 0:01:10]} 33. h3 {[%clk 0:00:15]}  Kg8 {[%clk 0:00:48]} 34. Qb5 {[%clk 0:00:15]}  Qd2 {[%clk 0:00:42]} 35. Qxa4 {[%clk 0:00:14]}  Qg5 {[%clk 0:00:41]} 36. Be8 {[%clk 0:00:13]}  Bd5 {[%clk 0:00:39]} 37. g3 {[%clk 0:00:09]}  Qf5 {[%clk 0:00:36]} 38. Qg4 {[%clk 0:00:07]}  Qxg4 {[%clk 0:00:33]} 39. hxg4 {[%clk 0:00:08]}  Rxe8 {[%clk 0:00:34]} 40. Rd7 {[%clk 0:00:07]}  Bc6 {[%clk 0:00:34]} 41. Rd6 {[%clk 0:00:07]}  Rc8 {[%clk 0:00:32]} 42. a4 {[%clk 0:00:07]}  Kf7 {[%clk 0:00:32]} 43. a5 {[%clk 0:00:08]}  Ke7 {[%clk 0:00:32]} 44. Rd2 {[%clk 0:00:07]}  Bb5 {[%clk 0:00:32]} 45. Rdc2 {[%clk 0:00:06]}  Rc6 {[%clk 0:00:30]} 46. Rxc6 {[%clk 0:00:06]}  bxc6 {[%clk 0:00:28]} 47. a6 {[%clk 0:00:05]}  Bxa6 {[%clk 0:00:26]} 48. Rxc6 {[%clk 0:00:05]}  Rb8 {[%clk 0:00:24]} 49. Rc7+ {[%clk 0:00:05]}  Kf8 {[%clk 0:00:22]} 50. f4 {[%clk 0:00:05]}  exf4 {[%clk 0:00:20]} 51. gxf4 {[%clk 0:00:05]}  Rxb6 {[%clk 0:00:21]} 52. Ra7 {[%clk 0:00:05]}  Bc4 {[%clk 0:00:20]} 53. Kf2 {[%clk 0:00:05]}  Bf7 {[%clk 0:00:20]} 54. Ke3 {[%clk 0:00:05]}  Rb3+ {[%clk 0:00:20]} 55. Kf2 {[%clk 0:00:05]}  Rb4 {[%clk 0:00:20]} 56. Rc7 {[%clk 0:00:05]}  Rxf4+ {[%clk 0:00:19]} 57. Kg3 {[%clk 0:00:06]}  Rc4 {[%clk 0:00:19]} 58. Ra7 {[%clk 0:00:05]}  Rc3+ {[%clk 0:00:19]} 59. Kf4 {[%clk 0:00:04]}  Be6 {[%clk 0:00:15]} 60. Ra8+ {[%clk 0:00:04]}  Kf7 {[%clk 0:00:15]} 61. Ra7+ {[%clk 0:00:05]}  Kg6 {[%clk 0:00:16]} 62. Ke4 {[%clk 0:00:05]}  Bxg4 {[%clk 0:00:15]} 63. Kf4 {[%clk 0:00:06]}  h5 {[%clk 0:00:14]} 64. Rc7 {[%clk 0:00:05]}  Rxc7 {[%clk 0:00:14]} 65. Kg3 {[%clk 0:00:05]}  Kg5 {[%clk 0:00:14]} 0-1


[Site "https://www.chess.com"]

[Event "Titled Tuesday Blitz January 03 Early 2023"]
[White "Pein, Malcolm"]
[Black "Hernandez Bonilla, Amelia"]
[WhiteFideId "400289"]
[BlackFideId "3900193"]
[WhiteElo "2305"]
[BlackElo "1960"]
[Result "0-1"]
[Round "09"]
[TimeControl "180+2"]
[Date "2023.01.03"]
[WhiteClock "0:00:01"]
[BlackClock "0:00:48"]

1. Nf3 {[%clk 0:02:48]}  d5 {[%clk 0:02:59]} 2. c4 {[%clk 0:02:48]}  e6 {[%clk 0:02:57]} 3. d4 {[%clk 0:02:45]}  Nf6 {[%clk 0:02:56]} 4. Nc3 {[%clk 0:02:46]}  Be7 {[%clk 0:02:50]} 5. Bf4 {[%clk 0:02:46]}  c6 {[%clk 0:02:44]} 6. e3 {[%clk 0:02:46]}  O-O {[%clk 0:02:43]} 7. Qc2 {[%clk 0:02:46]}  b6 {[%clk 0:02:42]} 8. O-O-O {[%clk 0:02:44]}  Bb7 {[%clk 0:02:40]} 9. Rg1 {[%clk 0:02:28]}  Qc8 {[%clk 0:02:21]} 10. g4 {[%clk 0:02:21]}  dxc4 {[%clk 0:02:16]} 11. Bxc4 {[%clk 0:02:20]}  c5 {[%clk 0:02:14]} 12. d5 {[%clk 0:02:03]}  Nxd5 {[%clk 0:02:09]} 13. Bxd5 {[%clk 0:01:56]}  exd5 {[%clk 0:02:09]} 14. Nxd5 {[%clk 0:01:57]}  Bxd5 {[%clk 0:02:05]} 15. Rxd5 {[%clk 0:01:58]}  Nc6 {[%clk 0:02:03]} 16. Rh5 {[%clk 0:01:41]}  g6 {[%clk 0:01:58]} 17. Bh6 {[%clk 0:01:28]}  Rd8 {[%clk 0:01:49]} 18. Qc3 {[%clk 0:01:17]}  Bf8 {[%clk 0:01:38]} 19. Bxf8 {[%clk 0:01:06]}  Rxf8 {[%clk 0:01:39]} 20. Ng5 {[%clk 0:00:37]}  Nb4 {[%clk 0:01:26]} 21. Qf6 {[%clk 0:00:30]}  Qd8 {[%clk 0:01:05]} 22. Qxd8 {[%clk 0:00:15]}  Rfxd8 {[%clk 0:01:02]} 23. Rxh7 {[%clk 0:00:11]}  f6 {[%clk 0:01:01]} 24. Rh6 {[%clk 0:00:07]}  fxg5 {[%clk 0:01:01]} 25. Rxg6+ {[%clk 0:00:07]}  Kf7 {[%clk 0:01:01]} 26. Rxg5 {[%clk 0:00:08]}  Nxa2+ {[%clk 0:00:56]} 27. Kb1 {[%clk 0:00:07]}  Nb4 {[%clk 0:00:56]} 28. Rf5+ {[%clk 0:00:07]}  Kg7 {[%clk 0:00:54]} 29. h4 {[%clk 0:00:07]}  Rd2 {[%clk 0:00:53]} 30. g5 {[%clk 0:00:04]}  Rf8 {[%clk 0:00:50]} 31. Rxf8 {[%clk 0:00:02]}  Kxf8 {[%clk 0:00:50]} 32. Rg2 {[%clk 0:00:01]}  Nd3 {[%clk 0:00:48]} 0-1


[Site "https://www.chess.com"]

[Event "Titled Tuesday Blitz January 03 Early 2023"]
[White "Fernandez Hernandez, Gerardo"]
[Black "Makhmudov, Shukhrat"]
[WhiteFideId "2207400"]
[BlackFideId "14200775"]
[WhiteElo "2181"]
[BlackElo "2115"]
[Result "0-1"]
[Round "09"]
[TimeControl "180+2"]
[Date "2023.01.03"]
[WhiteClock "0:00:02"]
[BlackClock "0:01:35"]

1. e4 {[%clk 0:03:00]}  e5 {[%clk 0:02:59]} 2. Nf3 {[%clk 0:03:00]}  Nc6 {[%clk 0:02:59]} 3. Bc4 {[%clk 0:03:00]}  Nf6 {[%clk 0:02:59]} 4. Ng5 {[%clk 0:03:00]}  d5 {[%clk 0:02:58]} 5. exd5 {[%clk 0:03:00]}  Na5 {[%clk 0:02:58]} 6. Bb5+ {[%clk 0:03:00]}  c6 {[%clk 0:02:59]} 7. dxc6 {[%clk 0:03:01]}  bxc6 {[%clk 0:02:59]} 8. Qf3 {[%clk 0:03:01]}  cxb5 {[%clk 0:02:56]} 9. Qxa8 {[%clk 0:02:55]}  Qc7 {[%clk 0:02:56]} 10. Nc3 {[%clk 0:02:27]}  Nc6 {[%clk 0:02:34]} 11. Nxb5 {[%clk 0:02:13]}  Qd7 {[%clk 0:02:35]} 12. d3 {[%clk 0:01:56]}  Bc5 {[%clk 0:02:32]} 13. Be3 {[%clk 0:01:20]}  Bxe3 {[%clk 0:02:32]} 14. fxe3 {[%clk 0:01:21]}  Nd5 {[%clk 0:02:32]} 15. O-O {[%clk 0:01:09]}  O-O {[%clk 0:02:31]} 16. Rxf7 {[%clk 0:00:48]}  Rxf7 {[%clk 0:02:29]} 17. Nxf7 {[%clk 0:00:49]}  Kxf7 {[%clk 0:02:30]} 18. Qxc8 {[%clk 0:00:47]}  Qxc8 {[%clk 0:02:29]} 19. Nd6+ {[%clk 0:00:47]}  Ke6 {[%clk 0:02:29]} 20. Nxc8 {[%clk 0:00:48]}  Nxe3 {[%clk 0:02:10]} 21. c3 {[%clk 0:00:33]}  Kd7 {[%clk 0:02:03]} 22. Re1 {[%clk 0:00:25]}  Ng4 {[%clk 0:01:58]} 23. h3 {[%clk 0:00:23]}  Nf6 {[%clk 0:01:57]} 24. Nxa7 {[%clk 0:00:20]}  Nxa7 {[%clk 0:01:56]} 25. Rxe5 {[%clk 0:00:21]}  Nc6 {[%clk 0:01:57]} 26. Re2 {[%clk 0:00:19]}  Nd5 {[%clk 0:01:56]} 27. a4 {[%clk 0:00:17]}  Nf4 {[%clk 0:01:55]} 28. Re3 {[%clk 0:00:16]}  Nd5 {[%clk 0:01:55]} 29. Rg3 {[%clk 0:00:15]}  g6 {[%clk 0:01:54]} 30. Rf3 {[%clk 0:00:14]}  Ke7 {[%clk 0:01:52]} 31. d4 {[%clk 0:00:11]}  Na5 {[%clk 0:01:50]} 32. b4 {[%clk 0:00:10]}  Nc4 {[%clk 0:01:50]} 33. a5 {[%clk 0:00:10]}  Nc7 {[%clk 0:01:49]} 34. Rf4 {[%clk 0:00:08]}  Nd5 {[%clk 0:01:47]} 35. Re4+ {[%clk 0:00:08]}  Kd7 {[%clk 0:01:48]} 36. a6 {[%clk 0:00:08]}  Nxc3 {[%clk 0:01:46]} 37. a7 {[%clk 0:00:06]}  Nb6 {[%clk 0:01:43]} 38. Re3 {[%clk 0:00:06]}  Nb5 {[%clk 0:01:43]} 39. Re5 {[%clk 0:00:05]}  Nxa7 {[%clk 0:01:43]} 40. Rc5 {[%clk 0:00:04]}  Nc6 {[%clk 0:01:40]} 41. d5 {[%clk 0:00:04]}  Nxb4 {[%clk 0:01:39]} 42. Rb5 {[%clk 0:00:04]}  N6xd5 {[%clk 0:01:40]} 43. Kf2 {[%clk 0:00:04]}  Kc6 {[%clk 0:01:40]} 44. Ra5 {[%clk 0:00:04]}  Kb6 {[%clk 0:01:38]} 45. Ra8 {[%clk 0:00:04]}  h5 {[%clk 0:01:38]} 46. Kg3 {[%clk 0:00:03]}  g5 {[%clk 0:01:35]} 47. Rg8 {[%clk 0:00:02]}  h4+ {[%clk 0:01:35]} 0-1


[Site "https://www.chess.com"]

[Event "Titled Tuesday Blitz January 03 Early 2023"]
[White "Vargas, Mauricio"]
[Black "De Souza, Cristiano Gomes"]
[WhiteFideId "4404572"]
[BlackFideId "2151758"]
[WhiteElo "2035"]
[BlackElo "2018"]
[Result "0-1"]
[Round "09"]
[TimeControl "180+2"]
[Date "2023.01.03"]
[WhiteClock "0:00:02"]
[BlackClock "0:01:22"]

1. e4 {[%clk 0:02:59]}  c5 {[%clk 0:02:59]} 2. Nc3 {[%clk 0:02:58]}  d6 {[%clk 0:02:59]} 3. f4 {[%clk 0:02:59]}  a6 {[%clk 0:02:59]} 4. Nf3 {[%clk 0:03:00]}  Bg4 {[%clk 0:02:58]} 5. d3 {[%clk 0:03:01]}  Nc6 {[%clk 0:02:58]} 6. h3 {[%clk 0:02:59]}  Bxf3 {[%clk 0:02:58]} 7. Qxf3 {[%clk 0:03:00]}  Nd4 {[%clk 0:02:59]} 8. Qd1 {[%clk 0:03:00]}  g6 {[%clk 0:03:00]} 9. g4 {[%clk 0:02:58]}  Bg7 {[%clk 0:03:00]} 10. Bg2 {[%clk 0:02:57]}  e5 {[%clk 0:02:58]} 11. O-O {[%clk 0:02:55]}  Ne7 {[%clk 0:02:57]} 12. Bd2 {[%clk 0:02:33]}  O-O {[%clk 0:02:56]} 13. f5 {[%clk 0:02:24]}  f6 {[%clk 0:02:45]} 14. Nb1 {[%clk 0:02:09]}  b5 {[%clk 0:02:43]} 15. c3 {[%clk 0:02:09]}  Ndc6 {[%clk 0:02:42]} 16. Qb3+ {[%clk 0:02:07]}  Kh8 {[%clk 0:02:41]} 17. Be3 {[%clk 0:01:58]}  c4 {[%clk 0:02:35]} 18. dxc4 {[%clk 0:01:56]}  Na5 {[%clk 0:02:35]} 19. Qc2 {[%clk 0:01:39]}  Nxc4 {[%clk 0:02:36]} 20. Bf2 {[%clk 0:01:32]}  Rc8 {[%clk 0:02:24]} 21. Nd2 {[%clk 0:01:20]}  gxf5 {[%clk 0:02:19]} 22. gxf5 {[%clk 0:01:06]}  Bh6 {[%clk 0:02:18]} 23. Nf3 {[%clk 0:00:58]}  Rg8 {[%clk 0:02:16]} 24. Kh1 {[%clk 0:00:57]}  Qc7 {[%clk 0:01:56]} 25. Rad1 {[%clk 0:00:44]}  Ne3 {[%clk 0:01:53]} 26. Bxe3 {[%clk 0:00:36]}  Bxe3 {[%clk 0:01:53]} 27. Qd3 {[%clk 0:00:29]}  Bf4 {[%clk 0:01:41]} 28. Qxd6 {[%clk 0:00:22]}  Rgf8 {[%clk 0:01:33]} 29. Qxc7 {[%clk 0:00:19]}  Rxc7 {[%clk 0:01:34]} 30. Rd6 {[%clk 0:00:19]}  Nc6 {[%clk 0:01:32]} 31. Rfd1 {[%clk 0:00:16]}  a5 {[%clk 0:01:31]} 32. Bf1 {[%clk 0:00:15]}  b4 {[%clk 0:01:31]} 33. cxb4 {[%clk 0:00:14]}  Nxb4 {[%clk 0:01:30]} 34. a3 {[%clk 0:00:12]}  Nc2 {[%clk 0:01:30]} 35. Rc1 {[%clk 0:00:08]}  Rfc8 {[%clk 0:01:28]} 36. Bd3 {[%clk 0:00:05]}  Ne3 {[%clk 0:01:26]} 37. Rxc7 {[%clk 0:00:04]}  Rxc7 {[%clk 0:01:26]} 38. Rxf6 {[%clk 0:00:05]}  Rc1+ {[%clk 0:01:26]} 39. Ng1 {[%clk 0:00:02]}  Nd1 {[%clk 0:01:22]} 0-1


[Site "https://www.chess.com"]

[Event "Titled Tuesday Blitz January 03 Early 2023"]
[White "Tuleyeva-Aketayeva, Dana"]
[Black "Martin, Lewis"]
[WhiteFideId "13701932"]
[BlackFideId "410551"]
[WhiteElo "2130"]
[BlackElo "2135"]
[Result "0-1"]
[Round "09"]
[TimeControl "180+2"]
[Date "2023.01.03"]
[WhiteClock "0:00:08"]
[BlackClock "0:00:50"]

1. Nf3 {[%clk 0:02:54]}  Nf6 {[%clk 0:02:53]} 2. g3 {[%clk 0:02:53]}  d5 {[%clk 0:02:53]} 3. d4 {[%clk 0:02:54]}  c6 {[%clk 0:02:51]} 4. Bg2 {[%clk 0:02:54]}  Bf5 {[%clk 0:02:52]} 5. O-O {[%clk 0:02:55]}  e6 {[%clk 0:02:51]} 6. c4 {[%clk 0:02:55]}  Nbd7 {[%clk 0:02:50]} 7. Nc3 {[%clk 0:02:56]}  Bd6 {[%clk 0:02:40]} 8. Nd2 {[%clk 0:02:54]}  O-O {[%clk 0:02:38]} 9. e4 {[%clk 0:02:55]}  dxe4 {[%clk 0:02:38]} 10. Ndxe4 {[%clk 0:02:55]}  Bc7 {[%clk 0:02:34]} 11. Be3 {[%clk 0:02:54]}  Qe7 {[%clk 0:02:32]} 12. Qb3 {[%clk 0:02:52]}  Rab8 {[%clk 0:02:27]} 13. Nxf6+ {[%clk 0:02:48]}  Nxf6 {[%clk 0:02:26]} 14. d5 {[%clk 0:02:46]}  cxd5 {[%clk 0:02:20]} 15. cxd5 {[%clk 0:02:45]}  a6 {[%clk 0:02:18]} 16. dxe6 {[%clk 0:02:16]}  Bxe6 {[%clk 0:02:17]} 17. Nd5 {[%clk 0:02:04]}  Nxd5 {[%clk 0:02:12]} 18. Bxd5 {[%clk 0:02:05]}  Bxd5 {[%clk 0:02:07]} 19. Qxd5 {[%clk 0:02:05]}  Rfd8 {[%clk 0:02:05]} 20. Qf5 {[%clk 0:01:57]}  Qe5 {[%clk 0:02:00]} 21. Qc2 {[%clk 0:01:52]}  Rbc8 {[%clk 0:01:58]} 22. Qb3 {[%clk 0:01:49]}  b5 {[%clk 0:01:54]} 23. Rac1 {[%clk 0:01:41]}  Qf6 {[%clk 0:01:41]} 24. Rc2 {[%clk 0:01:02]}  Be5 {[%clk 0:01:31]} 25. Rfc1 {[%clk 0:00:56]}  Rxc2 {[%clk 0:01:30]} 26. Rxc2 {[%clk 0:00:40]}  Qf3 {[%clk 0:01:23]} 27. Rc1 {[%clk 0:00:32]}  h6 {[%clk 0:01:16]} 28. Qc2 {[%clk 0:00:20]}  h5 {[%clk 0:00:57]} 29. b3 {[%clk 0:00:16]}  h4 {[%clk 0:00:56]} 30. Qc6 {[%clk 0:00:16]}  Rd1+ {[%clk 0:00:54]} 31. Rxd1 {[%clk 0:00:13]}  Qxc6 {[%clk 0:00:53]} 32. Rd8+ {[%clk 0:00:11]}  Kh7 {[%clk 0:00:53]} 33. g4 {[%clk 0:00:09]}  h3 {[%clk 0:00:51]} 34. f4 {[%clk 0:00:08]}  Qg2# {[%clk 0:00:50]} 0-1


[Site "https://www.chess.com"]